fUST/lending_fUST_20250225
["ID","MTS","AMOUNT","RATE_DAILY","PERIOD"]
[354400157,1740471067482,-527.1,0.00070136,120]
[354400158,1740471067491,-802.89,0.00070136,120]
[354400159,1740471067501,-1118.64,0.00070136,120]
[354400160,1740471067511,-151.0,0.00070136,120]
[354400161,1740471067521,-151.0,0.00070136,120]
[354400162,1740471067531,-500.0,0.00070136,120]
[354400163,1740471067540,-500.0,0.00070136,120]
[354400164,1740471067550,-844.51,0.00070136,120]
[354400165,1740471067561,-4769.7,0.00070136,120]
[354400166,1740471067571,-520.83,0.00070136,120]
[354400167,1740471067580,-347.061393,0.00070136,120]
[354400168,1740471067591,-2402.43,0.00070136,120]
[354400169,1740471067601,-3964.55,0.00070136,120]
[354400170,1740471067612,-222010.01,0.000702,30]
[354400171,1740471067622,-1498.5000009,0.00070311,15]
[354400172,1740471067631,-1500.0,0.00070311,15]
[354400173,1740471067641,-1500.0,0.00070311,15]
[354400174,1740471067651,-1055.85,0.0007041,120]
[354400175,1740471067661,-690.01,0.0007041,20]
[354400176,1740471067675,-677.07,0.0007041,120]
[354400177,1740471067685,-529.51962303,0.0007041,120]
[354400178,1740471067697,-1100.03,0.0007041,120]
[354400179,1740471067707,-521.66,0.0007041,120]
[354400180,1740471067717,-341.11,0.0007041,120]
[354400181,1740471067727,-894.27,0.0007041,120]
[354400182,1740471067737,-1169.03,0.0007041,120]
[354400183,1740471067746,-340.04142907,0.0007041,120]
[354400184,1740471067756,-500.0,0.0007041,120]
[354400185,1740471067766,-505.67,0.0007041,120]
[354400186,1740471067777,-1981.16,0.0007041,120]
[354400187,1740471067787,-500.0,0.0007041,120]
[354400188,1740471067796,-514.35,0.0007041,120]
[354400189,1740471067806,-1786.02,0.0007041,120]
[354400190,1740471067815,-151.0,0.0007041,120]
[354400191,1740471067825,-238.265994,0.0007041,120]
[354400192,1740471067834,-500.0,0.0007041,120]
[354400193,1740471067844,-1892.04,0.0007041,120]
[354400194,1740471067854,-698.01,0.0007041,120]
[354400195,1740471067864,-151.0,0.0007041,120]
[354400196,1740471067874,-2560.99,0.0007041,120]
[354400197,1740471067885,-500.0,0.0007041,120]
[354400198,1740471067895,-151.0,0.0007041,120]
[354400199,1740471067905,-500.0,0.0007041,120]
[354400200,1740471067917,-671.79,0.0007041,120]
[354400201,1740471067929,-578.42,0.0007041,120]
[354400202,1740471067939,-2762.36,0.0007041,120]
[354400203,1740471067949,-79977.47,0.0007041,7]
[354400204,1740471067959,-1276.81,0.0007041,3]
[354400205,1740471067969,-237.00367,0.0007041,30]
[354400206,1740471067980,-18901.3,0.0007041,120]
[354400207,1740471067990,-237.00367,0.0007041,30]
[354400208,1740471068085,-5802.92,0.0007041,120]
[354400209,1740471068095,-5319.54,0.0007041,120]
[354400210,1740471068105,-1288.38,0.0007041,120]
[354400211,1740471068115,-2021.79,0.0007041,120]
[354400212,1740471068125,-500.0,0.0007041,120]
[354400213,1740471068135,-500.0,0.0007041,120]
[354400214,1740471068145,-500.0,0.0007041,120]
[354400215,1740471068154,-500.0,0.0007041,120]
[354400216,1740471068166,-500.0,0.0007041,120]
[354400217,1740471068176,-196.053098,0.0007041,120]
[354400218,1740471068185,-196.053098,0.0007041,120]
[354400219,1740471068195,-500.0,0.0007041,120]
[354400220,1740471068204,-978.37,0.0007041,120]
[354400221,1740471068214,-527.1,0.0007041,120]
[354400222,1740471068223,-151.0,0.0007041,120]
[354400223,1740471068233,-802.89,0.0007041,120]
[354400224,1740471068243,-1118.64,0.0007041,120]
[354400225,1740471068252,-500.0,0.0007041,120]
[354400226,1740471068261,-151.0,0.0007041,120]
[354400227,1740471068270,-500.0,0.0007041,120]
[354400228,1740471068280,-844.51,0.0007041,120]
[354400229,1740471068289,-4769.7,0.0007041,120]
[354400230,1740471068299,-520.83,0.0007041,120]
[354400231,1740471068308,-2402.43,0.0007041,120]
[354400232,1740471068318,-3964.55,0.0007041,120]
[354400233,1740471068329,-7379.6,0.000706,30]
[354400234,1740471068338,-1055.85,0.00070684,120]
[354400235,1740471068347,-677.07,0.00070684,120]
[354400236,1740471068357,-1100.03,0.00070684,120]
[354400237,1740471068366,-521.66,0.00070684,120]
[354400238,1740471068375,-894.27,0.00070684,120]
[354400239,1740471068385,-1169.03,0.00070684,120]
[354400240,1740471068395,-544.00050199,0.00070684,120]
[354400241,1740471068404,-505.67,0.00070684,120]
[354400242,1740471068417,-1981.16,0.00070684,120]
[354400243,1740471068427,-562.96163148,0.00070684,120]
[354400244,1740471068436,-151.0,0.00070684,120]
[354400245,1740471068446,-514.35,0.00070684,120]
[354400246,1740471068456,-151.0,0.00070684,30]
[354400247,1740471068465,-151.0,0.00070684,120]
[354400248,1740471068475,-1786.02,0.00070684,120]
[354400249,1740471068485,-500.0,0.00070684,120]
[354400250,1740471068495,-1892.04,0.00070684,120]
[354400251,1740471068505,-698.01,0.00070684,120]
[354400252,1740471068514,-2560.99,0.00070684,120]
[354400253,1740471068524,-500.0,0.00070684,120]
[354400254,1740471068533,-500.0,0.00070684,120]
[354400255,1740471068544,-671.79,0.00070684,120]
[354400256,1740471068554,-578.42,0.00070684,120]
[354400257,1740471068565,-2762.36,0.00070684,120]
[354400258,1740471068575,-79977.47,0.00070684,7]
[354400259,1740471068589,-1276.81,0.00070684,3]
[354400260,1740471068600,-18901.3,0.00070684,120]
[354400261,1740471068612,-5802.92,0.00070684,120]
[354400262,1740471068623,-5319.54,0.00070684,120]
[354400263,1740471068634,-1288.38,0.00070684,120]
[354400264,1740471068647,-2021.79,0.00070684,120]
[354400265,1740471068658,-500.0,0.00070684,120]
[354400266,1740471068674,-459.91401659,0.00070684,120]
[354400267,1740471068685,-500.0,0.00070684,120]
[354400268,1740471068696,-500.0,0.00070684,120]
[354400269,1740471068707,-500.0,0.00070684,120]
[354400270,1740471068718,-500.0,0.00070684,120]
[354400271,1740471068730,-978.37,0.00070684,120]
[354400272,1740471068741,-527.1,0.00070684,120]
[354400273,1740471068751,-802.89,0.00070684,120]
[354400274,1740471068762,-1118.64,0.00070684,120]
[354400275,1740471068772,-500.0,0.00070684,120]
[354400276,1740471068782,-500.0,0.00070684,120]
[354400277,1740471068792,-844.51,0.00070684,120]
[354400278,1740471068803,-4769.7,0.00070684,120]
[354400279,1740471068814,-520.83,0.00070684,120]
[354400280,1740471068825,-2402.43,0.00070684,120]
[354400281,1740471068836,-3964.55,0.00070684,120]
[354400282,1740471068846,-2468.99,0.000707,30]
[354400283,1740471068856,-1055.85,0.00070958,120]
[354400284,1740471068872,-677.07,0.00070958,120]
[354400285,1740471068883,-1100.03,0.00070958,120]
[354400286,1740471068894,-521.66,0.00070958,120]
[354400287,1740471068904,-894.27,0.00070958,120]
[354400288,1740471068918,-1169.03,0.00070958,120]
[354400289,1740471068928,-505.67,0.00070958,120]
[354400290,1740471068939,-1981.16,0.00070958,120]
[354400291,1740471068950,-514.35,0.00070958,120]
[354400292,1740471068961,-1786.02,0.00070958,120]
[354400293,1740471068971,-500.0,0.00070958,120]
[354400294,1740471068982,-1892.04,0.00070958,120]
[354400295,1740471068995,-698.01,0.00070958,120]
[354400296,1740471069006,-2560.99,0.00070958,120]
[354400297,1740471069016,-193.62129005,0.00070958,120]
[354400298,1740471069029,-500.0,0.00070958,120]
[354400299,1740471069040,-671.79,0.00070958,120]
[354400300,1740471069051,-578.42,0.00070958,120]
[354400301,1740471069063,-2762.36,0.00070958,120]
[354400302,1740471069072,-9318.70567008,0.00070958,7]
[354400303,1740471069141,-70658.76432992,0.00070958,7]
[354400304,1740471069154,-1276.81,0.00070958,3]
[354400305,1740471069168,-18901.3,0.00070958,120]
[354400306,1740471069180,-5802.92,0.00070958,120]
[354400307,1740471069192,-5319.54,0.00070958,120]
[354400308,1740471069203,-1288.38,0.00070958,120]
[354400309,1740471069213,-2021.79,0.00070958,120]
[354400310,1740471069222,-500.0,0.00070958,120]
[354400311,1740471069233,-500.0,0.00070958,120]
[354400312,1740471069243,-500.0,0.00070958,120]
[354400313,1740471069253,-500.0,0.00070958,120]
[354400314,1740471069262,-500.0,0.00070958,120]
[354400315,1740471069271,-978.37,0.00070958,120]
[354400316,1740471069281,-527.1,0.00070958,120]
[354400317,1740471069290,-802.89,0.00070958,120]
[354400318,1740471069300,-1118.64,0.00070958,120]
[354400319,1740471069310,-500.0,0.00070958,120]
[354400320,1740471069320,-500.0,0.00070958,120]
[354400321,1740471069330,-844.51,0.00070958,120]
[354400322,1740471069339,-4769.7,0.00070958,120]
[354400323,1740471069349,-520.83,0.00070958,120]
[354400324,1740471069359,-2402.43,0.00070958,120]
[354400325,1740471069370,-3964.55,0.00070958,120]
[354400326,1740471069380,-3029.62,0.000712,30]
[354400327,1740471069390,-1055.85,0.00071232,120]
[354400328,1740471069400,-677.07,0.00071232,120]
[354400329,1740471069410,-1100.03,0.00071232,120]
[354400330,1740471069424,-521.66,0.00071232,120]
[354400331,1740471069434,-894.27,0.00071232,120]
[354400332,1740471069444,-1169.03,0.00071232,120]
[354400333,1740471069455,-505.67,0.00071232,120]
[354400334,1740471069465,-1981.16,0.00071232,120]
[354400335,1740471069475,-514.35,0.00071232,120]
[354400336,1740471069485,-1786.02,0.00071232,120]
[354400337,1740471069494,-500.0,0.00071232,120]
[354400338,1740471069504,-1892.04,0.00071232,120]
[354400339,1740471069515,-698.01,0.00071232,120]
[354400340,1740471069524,-2560.99,0.00071232,120]
[354400341,1740471069534,-500.0,0.00071232,120]
[354400342,1740471069545,-671.79,0.00071232,120]
[354400343,1740471069555,-578.42,0.00071232,120]
[354400344,1740471069564,-2762.36,0.00071232,120]
[354400345,1740471069573,-503.29366915,0.00071232,7]
[354400346,1740471077344,-158.42710047,0.00065753,120]
[354400347,1740471077354,-511.33354085,0.00065753,120]
[354400348,1740471077364,-500.54865302,0.00065753,120]
[354400349,1740471077373,-500.0,0.00065753,120]
[354400350,1740471077384,-500.0,0.00066027,120]
[354400351,1740471077394,-500.0,0.00066301,120]
[354400352,1740471077404,-347.061393,0.00070136,120]
[354400353,1740471077414,-62185.02161708,0.00071232,7]
[354400354,1740471077427,-1798.0,0.00071232,7]
[354400355,1740471077438,-2515.1815835,0.00071232,7]
[354400356,1740471077550,-55555.0,0.000656,120]
[354400357,1740471077560,-500.68181503,0.00065753,120]
[354400358,1740471077570,-12975.97313027,0.00071232,7]
[354400359,1740471077580,-1276.81,0.00071232,3]
[354400360,1740471077590,-18901.3,0.00071232,120]
[354400361,1740471077600,-5802.92,0.00071232,120]
[354400362,1740471077610,-5319.54,0.00071232,120]
[354400363,1740471077620,-1288.38,0.00071232,120]
[354400364,1740471077629,-2021.79,0.00071232,120]
[354400365,1740471077639,-239.90486084,0.00071232,120]
[354400366,1740471077649,-500.0,0.00071232,120]
[354400367,1740471077659,-500.0,0.00071232,120]
[354400368,1740471077669,-500.0,0.00071232,120]
[354400369,1740471077679,-154.62489324,0.00071232,120]
[354400370,1740471077689,-978.37,0.00071232,120]
[354400371,1740471077699,-527.1,0.00071232,120]
[354400372,1740471077708,-802.89,0.00071232,120]
[354400373,1740471077718,-1118.64,0.00071232,120]
[354400374,1740471077728,-299.191998,0.00071232,120]
[354400375,1740471077737,-643.56,0.00071232,120]
[354400376,1740471077746,-844.51,0.00071232,120]
[354400377,1740471077757,-4769.7,0.00071232,120]
[354400378,1740471077767,-520.83,0.00071232,120]
[354400379,1740471077777,-2402.43,0.00071232,120]
[354400380,1740471077786,-3964.55,0.00071232,120]
[354400381,1740471077798,-1055.85,0.00071506,120]
[354400382,1740471077808,-677.07,0.00071506,120]
[354400383,1740471077817,-1100.03,0.00071506,120]
[354400384,1740471077827,-521.66,0.00071506,120]
[354400385,1740471077836,-894.27,0.00071506,120]
[354400386,1740471077847,-1169.03,0.00071506,120]
[354400387,1740471077860,-505.67,0.00071506,120]
[354400388,1740471077875,-1981.16,0.00071506,120]
[354400389,1740471077886,-514.35,0.00071506,120]
[354400390,1740471077896,-1786.02,0.00071506,120]
[354400391,1740471077907,-500.0,0.00071506,120]
[354400392,1740471077918,-1892.04,0.00071506,120]
[354400393,1740471077934,-698.01,0.00071506,120]
[354400394,1740471077951,-2560.99,0.00071506,120]
[354400395,1740471077961,-500.0,0.00071506,120]
[354400396,1740471077973,-671.79,0.00071506,120]
[354400397,1740471077986,-578.42,0.00071506,120]
[354400398,1740471077996,-2762.36,0.00071506,120]
[354400399,1740471078006,-79977.47,0.00071506,7]
[354400400,1740471078016,-1276.81,0.00071506,3]
[354400401,1740471078027,-18901.3,0.00071506,120]
[354400402,1740471078038,-5802.92,0.00071506,120]
[354400403,1740471078049,-5319.54,0.00071506,120]
[354400404,1740471078061,-1288.38,0.00071506,120]
[354400405,1740471078073,-2021.79,0.00071506,120]
[354400406,1740471078085,-537.83051063,0.00071506,120]
[354400407,1740471078120,-500.0,0.00071506,120]
[354400408,1740471078130,-500.0,0.00071506,120]
[354400409,1740471078151,-978.37,0.00071506,120]
[354400410,1740471078165,-527.1,0.00071506,120]
[354400411,1740471078180,-802.89,0.00071506,120]
[354400412,1740471078191,-1118.64,0.00071506,120]
[354400413,1740471078202,-151.0,0.00071506,120]
[354400414,1740471078214,-151.0,0.00071506,120]
[354400415,1740471078224,-844.51,0.00071506,120]
[354400416,1740471078234,-4769.7,0.00071506,120]
[354400417,1740471078245,-520.83,0.00071506,120]
[354400418,1740471078255,-347.061393,0.00071506,120]
[354400419,1740471078264,-2402.43,0.00071506,120]
[354400420,1740471078275,-3964.55,0.00071506,120]
[354400421,1740471078284,-347.061393,0.00071506,120]
[354400422,1740471078294,-1171.95339648,0.00071608,15]
[354400423,1740471078303,-1088.99752194,0.00071608,15]
[354400424,1740471078313,-1055.85,0.0007178,120]
[354400425,1740471078323,-677.07,0.0007178,120]
[354400426,1740471078334,-1100.03,0.0007178,120]
[354400427,1740471078345,-521.66,0.0007178,120]
[354400428,1740471078355,-894.27,0.0007178,120]
[354400429,1740471078366,-305.929806,0.0007178,120]
[354400430,1740471078377,-1169.03,0.0007178,120]
[354400431,1740471078387,-305.929806,0.0007178,120]
[354400432,1740471078398,-505.67,0.0007178,120]
[354400433,1740471078408,-151.0,0.0007178,120]
[354400434,1740471078419,-151.0,0.0007178,120]
[354400435,1740471078432,-151.093382,0.0007178,120]
[354400436,1740471078442,-151.0,0.0007178,120]
[354400437,1740471078453,-1981.16,0.0007178,120]
[354400438,1740471078462,-151.0,0.0007178,120]
[354400439,1740471078472,-514.35,0.0007178,120]
[354400440,1740471078483,-151.0,0.0007178,120]
[354400441,1740471078492,-151.0,0.0007178,120]
[354400442,1740471078502,-444.217739,0.0007178,120]
[354400443,1740471078512,-204.509736,0.0007178,120]
[354400444,1740471078522,-1786.02,0.0007178,120]
[354400445,1740471078532,-204.509736,0.0007178,120]
[354400446,1740471078546,-151.0,0.0007178,120]
[354400447,1740471078555,-275.001525,0.0007178,120]
[354400448,1740471078565,-275.001525,0.0007178,120]
[354400449,1740471078575,-500.0,0.0007178,120]
[354400450,1740471078585,-151.0,0.0007178,120]
[354400451,1740471078596,-1892.04,0.0007178,120]
[354400452,1740471078607,-698.01,0.0007178,120]
[354400453,1740471078617,-901.042469,0.0007178,120]
[354400454,1740471078628,-151.0,0.0007178,120]
[354400455,1740471078639,-901.042469,0.0007178,120]
[354400456,1740471078649,-151.0,0.0007178,120]
[354400457,1740471078660,-2560.99,0.0007178,120]
[354400458,1740471078673,-613.0616732,0.0007178,120]
[354400459,1740471078691,-671.79,0.0007178,120]
[354400460,1740471078702,-578.42,0.0007178,120]
[354400461,1740471078712,-2762.36,0.0007178,120]
[354400462,1740471078723,-79977.47,0.0007178,7]
[354400463,1740471078733,-1276.81,0.0007178,3]
[354400464,1740471078743,-18901.3,0.0007178,120]
[354400465,1740471078752,-5802.92,0.0007178,120]
[354400466,1740471078762,-5319.54,0.0007178,120]
[354400467,1740471078772,-1288.38,0.0007178,120]
[354400468,1740471078783,-2021.79,0.0007178,120]
[354400469,1740471078793,-378.53154115,0.0007178,120]
[354400470,1740471078804,-500.0,0.0007178,120]
[354400471,1740471078815,-978.37,0.0007178,120]
[354400472,1740471078826,-527.1,0.0007178,120]
[354400473,1740471078836,-802.89,0.0007178,120]
[354400474,1740471078847,-1118.64,0.0007178,120]
[354400475,1740471078858,-844.51,0.0007178,120]
[354400476,1740471078874,-4769.7,0.0007178,120]
[354400477,1740471078884,-520.83,0.0007178,120]
[354400478,1740471078894,-2402.43,0.0007178,120]
[354400479,1740471078904,-3964.55,0.0007178,120]
[354400480,1740471078916,-1055.85,0.00072054,120]
[354400481,1740471078930,-677.26,0.00072054,120]
[354400482,1740471078942,-1100.09957126,0.00072054,120]
[354400483,1740471078953,-521.6805762,0.00072054,120]
[354400484,1740471078963,-298.872165,0.00072054,120]
[354400485,1740471078975,-298.872165,0.00072054,120]
[354400486,1740471078985,-271.974035,0.00072054,120]
[354400487,1740471078995,-151.0,0.00072054,120]
[354400488,1740471079005,-271.974035,0.00072054,120]
[354400489,1740471079017,-894.48467801,0.00072054,120]
[354400490,1740471079028,-1169.21000001,0.00072054,120]
[354400491,1740471079039,-400.0,0.00072054,30]
[354400492,1740471079050,-400.0,0.00072054,30]
[354400493,1740471079060,-505.78,0.00072054,120]
[354400494,1740471079072,-1981.37,0.00072054,120]
[354400495,1740471079085,-514.43,0.00072054,120]
[354400496,1740471079096,-151.0,0.00072054,120]
[354400497,1740471079106,-151.0,0.00072054,120]
[354400498,1740471079117,-1786.11765343,0.00072054,120]
[354400499,1740471079128,-166.76,0.00072054,120]
[354400500,1740471079139,-1892.08,0.00072054,120]
[354400501,1740471079151,-698.04,0.00072054,120]
[354400502,1740471079162,-2561.00519177,0.00072054,120]
[354400503,1740471079176,-151.0,0.00072054,120]
[354400504,1740471079187,-672.02,0.00072054,120]
[354400505,1740471079198,-578.58,0.00072054,120]
[354400506,1740471079208,-2762.5094456,0.00072054,120]
[354400507,1740471079218,-79977.64404442,0.00072054,7]
[354400508,1740471079229,-237.00367,0.00072054,30]
[354400509,1740471079238,-1276.81849273,0.00072054,3]
[354400510,1740471079248,-18901.48653506,0.00072054,120]
[354400511,1740471079259,-237.00367,0.00072054,30]
[354400512,1740471079268,-5802.965,0.00072054,120]
[354400513,1740471079278,-5319.59154405,0.00072054,120]
[354400514,1740471079288,-1288.39532137,0.00072054,120]
[354400515,1740471079299,-2021.9791,0.00072054,120]
[354400516,1740471079308,-196.053098,0.00072054,120]
[354400517,1740471079318,-211.81179385,0.00072054,120]
[354400518,1740471079327,-196.053098,0.00072054,120]
[354400519,1740471079337,-978.58323533,0.00072054,120]
[354400520,1740471079347,-527.31,0.00072054,120]
[354400521,1740471079356,-151.0,0.00072054,120]
[354400522,1740471079366,-803.07967822,0.00072054,120]
[354400523,1740471079377,-1118.64056,0.00072054,120]
[354400524,1740471079386,-151.0,0.00072054,120]
[354400525,1740471079398,-844.74,0.00072054,120]
[354400526,1740471079408,-4769.91877103,0.00072054,120]
[354400527,1740471079418,-520.91,0.00072054,120]
[354400528,1740471079431,-2402.65092039,0.00072054,120]
[354400529,1740471079442,-3964.60376773,0.00072054,120]
[354400530,1740471079452,-500.0,0.00073,120]
[354400531,1740471079464,-500.0,0.00073972,120]
[354400532,1740471079475,-500.0,0.00073972,120]
[354400533,1740471079484,-500.0,0.00073972,120]
[354400534,1740471079493,-500.0,0.00073972,120]
[354400535,1740471079503,-500.0,0.00073972,120]
[354400536,1740471079513,-500.0,0.00073972,120]
[354400537,1740471079523,-500.0,0.00073972,120]
[354400538,1740471079532,-500.0,0.00073972,120]
[354400539,1740471079542,-507.82100001,0.00073972,120]
[354400540,1740471079551,-1944.87970854,0.00074,120]
[354400541,1740471079560,-500.0,0.00075,120]
[354400542,1740471079570,-500.0,0.00075972,120]
[354400543,1740471079580,-500.0,0.00075972,120]
[354400544,1740471079590,-222010.01,0.000779,30]
[354400545,1740471079599,-500.0,0.00078164,120]
[354400546,1740471079703,-500.0,0.0007819,120]
[354400547,1740471079713,-7379.6,0.000782,30]
[354400548,1740471079723,-500.0,0.00080082,120]
[354400549,1740471079732,-500.0,0.00080082,120]
[354400550,1740471079742,-3029.62,0.000801,30]
[354400551,1740471079751,-2468.99,0.000801,30]
[354400552,1740471079760,-182.92,0.00081207,120]
[354400553,1740471079771,-500.0,0.00084173,60]
[354400554,1740471079781,-500.0,0.00084173,60]
[354400555,1740471079791,-500.0,0.00084173,60]
[354400556,1740471079802,-500.0,0.00084173,14]
[354400557,1740471079812,-500.0,0.00084173,60]
[354400558,1740471079823,-500.0,0.00084173,60]
[354400559,1740471079832,-500.0,0.00084191,120]
[354400560,1740471079841,-500.0,0.00084191,120]
[354400561,1740471079852,-196.199406,0.000847,120]
[354400562,1740471079862,-151.0,0.000847,30]
[354400563,1740471079871,-151.0,0.000847,120]
[354400564,1740471079882,-1000.0,0.00084721,60]
[354400565,1740471079893,-1097.46128311,0.00084721,60]
[354400566,1740471079906,-1000.0,0.00084721,60]
[354400567,1740471079922,-1000.0,0.00084721,14]
[354400568,1740471079936,-1000.0,0.00084721,60]
[354400569,1740471079947,-1000.0,0.00085722,60]
[354400570,1740471079957,-1500.0,0.00085722,60]
[354400571,1740471079968,-1500.0,0.00085722,14]
[354400572,1740471079980,-1500.0,0.00085722,60]
[354400573,1740471079990,-2000.0,0.0008702,14]
[354400574,1740471080000,-2000.0,0.0008702,60]
[354400575,1740471080010,-1439.00075598,0.0008702,60]
[354400576,1740471080020,-500.0,0.00088301,120]
[354400577,1740471080029,-500.0,0.00088301,120]
[354400578,1740471080038,-2500.0,0.00088556,14]
[354400579,1740471080048,-422.18910731,0.00088556,60]
[354400580,1740471080058,-3000.0,0.00090299,14]
[354400581,1740471080068,-3500.0,0.00092226,14]
[354400582,1740471080077,-500.0,0.0009241,120]
[354400583,1740471080087,-1500.0,0.00094321,14]
[354400584,1740471080096,-20000.0,0.000945,120]
[354400585,1740471080105,-182.92,0.00095603,120]
[354400586,1740471080114,-527.0,0.0009652,120]
[354400587,1740471080124,-490.6586915,0.00097999,120]
[354400588,1740471080134,-500.88310522,0.0009999,120]
[354400589,1740471080143,-500.65130225,0.00103152,60]
[354400590,1740471080152,-480.0,0.00105561,120]
[354400591,1740471080162,-480.0,0.00105587,120]
[354400592,1740471080171,-3029.62,0.00106,60]
[354400593,1740471080185,-278.807737,0.00109589,120]
[354400594,1740471080194,-182.92,0.0011,120]
[354400595,1740471080204,-2468.99,0.0011,60]
[354400596,1740471080213,-20000.0,0.001245,120]
[354400597,1740471080223,-7379.6,0.00125,60]
[354400598,1740471080232,-222010.01,0.00129,30]
[354400599,1740471080242,-440.0,0.00136891,120]
[354400600,1740471080251,-440.0,0.00136917,120]
[354400601,1740471080261,-306.0,0.00142574,60]
[354400602,1740471080270,-10000.0,0.00145,120]
[354400603,1740471080280,-380.0,0.001699,120]
[354400604,1740471080289,-380.0,0.00169926,120]
[354400605,1740471080299,-300.0,0.00204075,120]
[354400606,1740471080309,-200.0,0.00239097,120]
[354400607,1740471080318,-20000.0,0.00245,120]
[354400608,1740471080328,-1841.43994163,0.00254807,120]
[354400609,1740471080338,-258.832865,0.00273973,120]
[354400610,1740471080348,-258.832869,0.00273973,120]
[354400611,1740471080357,-360.0,0.00273973,120]
[354400612,1740471080367,-360.0,0.00273973,120]
[354400613,1740471080377,-360.0,0.00273973,120]
[354400614,1740471080387,-360.0,0.00273973,120]
[354400615,1740471080396,-360.0,0.00273973,120]
[354400616,1740471080406,-360.0,0.00273973,120]
[354400617,1740471080415,-360.0,0.00273973,120]
[354400618,1740471080428,-360.0,0.00273973,120]
[354400619,1740471080438,-360.0,0.00273973,120]
[354400620,1740471080447,-360.0,0.00273973,120]
[354400621,1740471080457,-360.0,0.00273973,120]
[354400622,1740471080466,-360.0,0.00273973,120]
[354400623,1740471080475,-360.0,0.00273973,120]
[354400624,1740471080486,-360.0,0.00273973,120]
[354400625,1740471080495,-360.0,0.00273973,120]
[354400626,1740471080504,-360.0,0.00273973,120]
[354400627,1740471080515,-360.0,0.00273973,120]
[354400628,1740471080524,-360.0,0.00273973,120]
[354400629,1740471080534,-360.0,0.00273973,120]
[354400630,1740471080543,-360.0,0.00273973,120]
[354400631,1740471080552,-151.0,0.00273973,120]
[354400632,1740471080562,-151.0,0.00273973,120]
[354400633,1740471080571,-151.0,0.00273973,120]
[354400634,1740471080580,-151.0,0.00273973,120]
[354400635,1740471080589,-151.0,0.00273973,120]
[354400636,1740471080599,-151.0,0.00273973,120]
[354400637,1740471080609,-151.0,0.00273973,120]
[354400638,1740471080619,-151.0,0.00273973,120]
[354400639,1740471080628,-151.0,0.00273973,120]
[354400640,1740471080638,-151.0,0.00273973,120]
[354400641,1740471080647,-151.0,0.00273973,120]
[354400642,1740471080657,-189.968929,0.00273973,120]
[354400643,1740471080666,-151.0,0.00273973,120]
[354400644,1740471080676,-151.0,0.00273973,120]
[354400645,1740471080689,-151.0,0.00273973,120]
[354400646,1740471080698,-151.0,0.00273973,120]
[354400647,1740471080708,-151.0,0.00273973,120]
[354400648,1740471080718,-151.0,0.00273973,120]
[354400649,1740471080727,-151.0,0.00273973,120]
[354400650,1740471080738,-151.0,0.00273973,120]
[354400651,1740471080748,-276.970645,0.00273973,120]
[354400652,1740471080757,-151.0,0.00273973,120]
[354400653,1740471080767,-151.0,0.00273973,120]
[354400654,1740471080777,-151.0,0.00273973,120]
[354400655,1740471080787,-151.0,0.00273973,120]
[354400656,1740471080797,-151.0,0.00273973,120]